fUSD/lending_fUSD_20260208
["ID","MTS","AMOUNT","RATE_DAILY","PERIOD"]
[404808749,1770583844263,-151.0,0.00044298,28]
[404808750,1770583844272,-151.0,0.00044298,28]
[404808751,1770583844281,-151.0,0.00044298,28]
[404808752,1770583844290,-151.0,0.00044298,28]
[404808753,1770583844300,-151.0,0.00044298,28]
[404808754,1770583844309,-151.0,0.00044298,28]
[404808755,1770583844319,-151.0,0.00044298,28]
[404808756,1770583844328,-151.0,0.00044298,28]
[404808757,1770583844337,-151.0,0.00044298,28]
[404808758,1770583844346,-151.0,0.00044298,28]
[404808759,1770583844357,-151.0,0.00044298,28]
[404808760,1770583844367,-151.0,0.00044298,28]
[404808761,1770583844376,-168.149844,0.00044298,28]
[404808762,1770583844388,-132301.85169129,0.00044298,56]
[404808763,1770583844398,-351020.21822539,0.00044299,10]
[404808764,1770583844522,-500.0,0.00035884,2]
[404808765,1770583844533,-441.25413814,0.00041137,2]
[404808766,1770583844547,-523.29028025,0.00041137,2]
[404808767,1770583844560,-1538.38209799,0.00041137,2]
[404808768,1770583844692,-95.84251845,0.00041137,2]
[404808769,1770583844704,-656.23096517,0.00041137,2]
[404808770,1770583844714,-228.02896989,0.00043835,2]
[404808778,1770583845973,-1272.51026293,0.000348,2]
[404808779,1770583845983,-271.97103011,0.00043835,2]
[404808780,1770583845993,-500.0,0.00043835,120]
[404808781,1770583846003,-500.0,0.00043835,120]
[404808782,1770583846013,-500.0,0.00043835,120]
[404808783,1770583846023,-511.15217907,0.00043835,120]
[404808784,1770583846033,-3255.0,0.00044137,2]
[404808785,1770583846042,-198689.36652789,0.00044299,10]
[404808786,1770583846054,-17503.46991819,0.00044299,10]
[404808787,1770583846065,-825761.51364151,0.00044299,10]
[404808788,1770583846137,-7558.66098866,0.00044299,10]
[404808789,1770583846300,-1296.67234484,0.00044299,10]
[404808813,1770583869551,300.0,0.00035528,120]
[404808814,1770583880569,1336.91403435,0.00033426,30]
[404808815,1770583898650,180.417,0.00032637,33]
[404808816,1770584240885,300.0,0.00035,120]
[404808817,1770584286635,300.0,0.00028366,120]
[404808818,1770584482435,292.96,0.00030141,120]
[404808824,1770584835358,2086.98398303,0.00035616,30]
[404808825,1770584936748,150.48,0.00030137,30]
[404808826,1770584946100,-668.37481976,0.00025786,2]
[404808832,1770585032204,-176.16894794,0.00025687,2]
[404808833,1770585032214,-250.0,0.00025737,2]
[404808834,1770585032224,-307.62518024,0.00025786,2]
[404808835,1770585032234,-1200.0,0.00025786,2]
[404808836,1770585032243,-374.60744617,0.00025787,2]
[404808837,1770585032253,-300.0,0.00025787,2]
[404808838,1770585032263,-300.0,0.00025787,2]
[404808839,1770585032272,-172.26,0.00025788,2]
[404808840,1770585032285,-500.0,0.00025788,2]
[404808841,1770585032294,-58.95751802,0.00025788,2]
[404808842,1770585032306,-441.04248198,0.00025788,2]
[404808843,1770585032316,-415.59642938,0.00025788,2]
[404808844,1770585032328,-84.40357062,0.00025788,2]
[404808845,1770585032337,-500.0,0.00025788,2]
[404808846,1770585032347,-362.77063245,0.00025788,2]
[404808847,1770585032356,-250.0,0.00026084,2]
[404808848,1770585032366,-500.0,0.00027373,2]
[404808849,1770585032376,-500.0,0.00027473,5]
[404808850,1770585032385,-500.0,0.00027473,5]
[404808851,1770585032395,-500.0,0.00027473,5]
[404808852,1770585032405,-500.0,0.00027473,5]
[404808853,1770585032415,-150.99,0.00027788,2]
[404808854,1770585032424,-374.60744617,0.00027788,2]
[404808855,1770585032434,-150.0,0.00028018,2]
[404808856,1770585032444,-1621.47,0.00028019,2]
[404808857,1770585032454,-1540.2,0.00028019,2]
[404808858,1770585032463,-4259.5,0.00028019,2]
[404808859,1770585032472,-1000.0,0.00028021,5]
[404808860,1770585032482,-500.0,0.00028021,5]
[404808862,1770585032492,-1000.0,0.00028021,5]
[404808864,1770585032502,-1000.0,0.00028021,5]
[404808866,1770585032511,-795.0,0.00028037,2]
[404808868,1770585032520,-176.16894792,0.00028188,2]
[404808869,1770585032530,-250.0,0.00028256,2]
[404808871,1770585032539,-1500.0,0.00028568,5]
[404808873,1770585032549,-500.0,0.00028568,5]
[404808875,1770585032558,-374.60744617,0.00028788,2]
[404808878,1770585032567,-1000.0,0.00029008,2]
[404808881,1770585032576,-25980.9,0.00029009,2]
[404808883,1770585032586,-508.70815555,0.00029116,5]
[404808886,1770585032595,-374.60744617,0.00029788,2]
[404808888,1770585032604,-1000.0,0.00030078,20]
[404808890,1770585032613,-160.68,0.00030261,2]
[404808892,1770585032623,-1013.85,0.00030267,2]
[404808894,1770585032632,-2828.55,0.00030485,2]
[404808896,1770585032643,-176.16894792,0.00030688,2]
[404808898,1770585032654,-374.60744617,0.00030788,2]
[404808900,1770585032663,-12759.87445064,0.00030904,2]
[404808903,1770585032675,-1292.2457146,0.00030904,2]
[404808905,1770585032686,-6105.13983476,0.00030904,2]
[404808906,1770585032695,-374.60744617,0.00031789,2]
[404808907,1770585032705,-1847.13860599,0.000325,2]
[404808908,1770585032718,-4450.4247,0.00032575,10]
[404808909,1770585032727,-150.0,0.00032599,20]
[404808910,1770585032738,-1099.45880771,0.000326,2]
[404808911,1770585032747,-160.68,0.00032783,2]
[404808912,1770585032757,-374.60744617,0.00032789,2]
[404808913,1770585032767,-345.04,0.00032877,2]
[404808914,1770585032776,-10000.0,0.00033327,2]
[404808915,1770585032791,-5180.37,0.00033559,2]
[404808916,1770585032801,-5833.67377682,0.00033593,2]
[404808917,1770585032812,-33429.79805473,0.00033593,2]
[404808918,1770585032828,-814.47785732,0.00033593,2]
[404808919,1770585032840,-2229.71779747,0.00033593,2]
[404808920,1770585032851,-776.97,0.00033593,2]
[404808921,1770585032865,-230505.76251366,0.00033593,2]
[404808922,1770585032874,-3162.53186667,0.00033689,2]
[404808923,1770585032884,-374.60744617,0.00033789,2]
[404808924,1770585032894,-5000.0,0.00033793,2]
[404808925,1770585032904,-500.0,0.00033801,2]
[404808926,1770585032915,-1002.16615002,0.00033933,2]
[404808927,1770585032925,-3160.9711,0.00034072,2]
[404808928,1770585032936,-4684.6197,0.00034072,2]
[404808929,1770585032947,-6728.3003,0.00034072,2]
[404808930,1770585032959,-1847.13860595,0.00034172,2]
[404808931,1770585032968,-166.66,0.00034336,2]
[404808932,1770585032978,-1099.45880766,0.00034534,2]
[404808933,1770585032989,-1298.2069,0.00034768,2]
[404808934,1770585033000,-1000.0,0.00034768,2]
[404808935,1770585033009,-374.60744617,0.00034789,2]
[404808936,1770585033018,-3162.53186662,0.00034857,2]
[404808937,1770585033027,-150.0,0.00034904,2]
[404808938,1770585033039,-3635.0,0.000351,3]
[404808939,1770585033048,-160.68,0.00035305,2]
[404808940,1770585033059,-150.0,0.00035342,2]
[404808941,1770585033068,-150.0,0.00035397,2]
[404808942,1770585033077,-5529.0,0.000355,5]
[404808943,1770585033086,-1847.13860595,0.00035843,2]
[404808944,1770585033096,-3162.53186662,0.00036025,2]
[404808945,1770585033105,-1747.98893461,0.00036086,7]
[404808946,1770585033115,-180.418,0.00036281,44]
[404808947,1770585033124,-1099.45880766,0.00036467,2]
[404808948,1770585033133,-150.0,0.00036649,2]
[404808949,1770585033142,-374.60744617,0.0003679,2]
[404808950,1770585033152,-166.66,0.00037169,2]
[404808951,1770585033161,-2052.94561107,0.00037193,2]
[404808954,1770585038257,-1109.58625555,0.00037193,2]
[404808955,1770585038267,-1847.13860595,0.00037515,2]
[404808956,1770585038276,-152.0,0.00037751,3]
[404808957,1770585038286,-374.60744617,0.0003779,2]
[404808958,1770585038295,-268.59827945,0.00037808,2]
[404808959,1770585038316,-31.40172055,0.00037808,2]
[404808960,1770585038326,-160.68,0.00037827,2]
[404808961,1770585038336,-3162.53186662,0.00038361,2]
[404808962,1770585038345,-1099.45880766,0.00038401,2]
[404808963,1770585038354,-150.0,0.00038482,2]
[404808964,1770585038364,-172.26,0.00038681,2]
[404808965,1770585038374,-374.60744617,0.00038791,2]
[404808966,1770585038384,-1847.13860595,0.00039187,2]
[404808967,1770585038394,-1000.0,0.00039299,14]
[404808968,1770585038403,-3255.0,0.00039515,2]
[404808969,1770585038412,-6585.0,0.00039515,2]
[404808970,1770585038422,-412.0,0.00039515,2]
[404808971,1770585038432,-3162.53186662,0.0003953,2]
[404808972,1770585038442,-1000.0,0.00039573,14]
[404808973,1770585038451,-500.0,0.00039773,5]
[404808974,1770585038460,-374.60744617,0.00039791,2]
[404808975,1770585038470,-1499.0,0.00039847,14]
[404808976,1770585038480,-20844.03,0.0004,120]
[404808977,1770585038494,-22500.0,0.0004,120]
[404808978,1770585038504,-152.0,0.0004,120]
[404808979,1770585038514,-154.0,0.0004,120]
[404808980,1770585038524,-166.66,0.00040003,2]
[404808981,1770585038533,-150.0,0.00040192,2]
[404808982,1770585038544,-2117.9728,0.00040221,2]
[404808983,1770585038554,-640.5,0.00040254,60]
[404808984,1770585038564,-433.80361693,0.00040321,5]
[404808985,1770585038574,-1099.45880766,0.00040335,2]
[404808986,1770585038583,-160.68,0.00040348,2]
[404808987,1770585038593,-22500.0,0.00040375,120]
[404808988,1770585038602,-150.0,0.00040406,2]
[404808989,1770585038612,-1000.0,0.00040481,2]
[404808990,1770585038623,-3162.53186662,0.00040698,15]
[404808991,1770585038633,-500.0,0.00040749,31]
[404808992,1770585038643,-500.0,0.00040749,31]
[404808993,1770585038653,-500.0,0.00040749,31]
[404808994,1770585038663,-595.90516621,0.00040749,31]
[404808995,1770585038671,-500.0,0.00040749,7]
[404808996,1770585038682,-233.92759524,0.00040749,7]
[404808998,1770585038691,-22500.0,0.0004075,120]
[404809000,1770585038702,-374.60744617,0.00040791,2]
[404809002,1770585038711,-8195.0,0.000408,5]
[404809003,1770585038721,-152.0,0.000408,120]
[404809004,1770585038732,-1847.13860595,0.00040859,28]
[404809005,1770585038745,-154.0,0.00041,120]
[404809006,1770585038756,-363.77058182,0.00041095,120]
[404809007,1770585038765,-150.0,0.00041137,2]
[404809008,1770585038775,-616.0,0.00041137,2]
[404809009,1770585038790,-3484.0,0.00041137,2]
[404809010,1770585038800,-1335.0,0.00041137,2]
[404809011,1770585038809,-917.0,0.00041137,2]
[404809012,1770585038819,-211.0,0.00041236,2]
[404809013,1770585038828,-211.0,0.00041239,7]
[404809014,1770585038838,-211.0,0.00041245,2]
[404809015,1770585038847,-211.0,0.0004137,7]
[404809016,1770585038856,-211.0,0.00041399,7]
[404809017,1770585038865,-5000.0,0.000415,50]
[404809018,1770585038875,-152.24,0.00041559,120]
[404809019,1770585038884,-2000.0,0.000416,2]
[404809020,1770585038893,-152.0,0.000416,120]
[404809021,1770585038902,-152.24,0.00041659,120]
[404809022,1770585038912,-374.60744617,0.00041791,2]
[404809023,1770585038921,-3162.53186662,0.00041866,15]
[404809024,1770585038930,-213.75126474,0.00042,2]
[404809025,1770585038940,-1088.0,0.00042,10]
[404809026,1770585038949,-154.0,0.000421,120]
[404809027,1770585038959,-164.0,0.00042236,16]
[404809028,1770585038968,-1099.45880766,0.00042268,6]
[404809029,1770585038977,-1000.0,0.00042391,4]
[404809030,1770585038987,-152.0,0.000424,120]
[404809031,1770585038996,-150.0,0.00042426,120]
[404809032,1770585039006,-211.0,0.00042457,120]
[404809033,1770585039016,-20000.0,0.00042466,120]
[404809034,1770585039025,-169.75030081,0.00042493,30]
[404809035,1770585039035,-3255.0,0.00042515,2]
[404809036,1770585039046,-6585.0,0.00042515,2]
[404809037,1770585039055,-1847.13860595,0.0004253,28]
[404809038,1770585039065,-840.0,0.00042578,16]
[404809039,1770585039074,-539.29236495,0.00042661,60]
[404809040,1770585039084,-211.0,0.00042676,2]
[404809041,1770585039093,-800.0,0.0004274,7]
[404809042,1770585039102,-211.0,0.00042776,2]
[404809043,1770585039111,-374.60744617,0.00042792,2]
[404809044,1770585039122,-48926.0,0.00042846,30]
[404809045,1770585039131,-160.68,0.0004287,2]
[404809046,1770585039140,-152.0,0.00042879,4]
[404809047,1770585039150,-200.0,0.000429,15]
[404809048,1770585039159,-809.14284748,0.000429,120]
[404809049,1770585039168,-809.14284747,0.000429,120]
[404809050,1770585039177,-809.14284747,0.000429,120]
[404809051,1770585039186,-809.14284747,0.000429,120]
[404809052,1770585039196,-809.14284747,0.000429,120]
[404809053,1770585039206,-4555.29193256,0.00042931,7]
[404809054,1770585039215,-169.75030081,0.00042959,30]
[404809055,1770585039224,-196.0,0.00042966,16]
[404809056,1770585039233,-840.0,0.0004297,16]
[404809057,1770585039243,-150.0,0.00042973,10]
[404809058,1770585039252,-300.0,0.00042973,5]
[404809059,1770585039262,-164.0,0.00042975,16]
[404809060,1770585039271,-211.0,0.00042979,2]
[404809061,1770585039280,-500.0,0.00043,15]
[404809062,1770585039290,-212.0,0.00043,30]
[404809063,1770585039299,-100000.0,0.00043,8]
[404809064,1770585039309,-3162.53186662,0.00043034,15]
[404809065,1770585039318,-211.0,0.00043034,2]
[404809066,1770585039328,-700.0,0.000431,15]
[404809067,1770585039337,-154.0,0.000431,120]
[404809068,1770585039347,-1000.0,0.000432,15]
[404809069,1770585039357,-152.0,0.000432,120]
[404809070,1770585039367,-211.0,0.00043251,2]
[404809071,1770585039377,-211.0,0.00043276,7]
[404809072,1770585039386,-2827.0,0.00043286,16]
[404809073,1770585039396,-211.0,0.00043287,120]
[404809074,1770585039406,-48926.0,0.00043288,30]
[404809075,1770585039416,-2827.0,0.00043298,16]
[404809076,1770585039425,-1000.0,0.00043299,120]
[404809077,1770585039434,-1200.0,0.000433,15]
[404809078,1770585039444,-212.0,0.00043332,7]
[404809079,1770585039453,-211.0,0.00043366,7]
[404809080,1770585039463,-200.0,0.000434,15]
[404809081,1770585039472,-152.52520712,0.000434,120]
[404809082,1770585039481,-169.75030081,0.00043425,30]
[404809083,1770585039491,-200.0,0.00043453,2]
[404809084,1770585039500,-636.0,0.00043471,120]
[404809085,1770585039509,-200.0,0.000435,15]
[404809086,1770585039518,-211.0,0.00043501,120]
[404809087,1770585039527,-251.3634381,0.00043521,10]
[404809088,1770585039537,-300.51862815,0.00043521,5]
[404809089,1770585039547,-523.0,0.00043534,16]
[404809090,1770585039560,-211.0,0.00043572,7]
[404809091,1770585039569,-1000.0,0.000436,2]
[404809092,1770585039579,-200.0,0.000436,15]
[404809093,1770585039588,-840.0,0.00043608,16]
[404809094,1770585039598,-547.54562284,0.00043631,20]
[404809095,1770585039608,-150.0,0.00043656,30]
[404809096,1770585039618,-1055.36341633,0.00043656,30]
[404809097,1770585039627,-150.0,0.00043656,30]
[404809098,1770585039636,-3240.89898856,0.00043656,30]
[404809099,1770585039645,-150.0,0.00043656,30]
[404809100,1770585039654,-748.98175907,0.00043656,30]
[404809101,1770585039663,-200.0,0.000437,15]
[404809102,1770585039673,-25000.0,0.00043721,15]
[404809103,1770585039685,-5000.0,0.00043726,120]
[404809104,1770585039694,-48926.0,0.00043729,30]
[404809105,1770585039704,-25000.0,0.00043729,15]
[404809106,1770585039713,-212.0,0.00043731,2]
[404809107,1770585039722,-25000.0,0.00043738,15]
[404809108,1770585039731,-25000.0,0.00043747,15]
[404809109,1770585039741,-25000.0,0.00043756,15]
[404809110,1770585039750,-151.0,0.00043762,120]
[404809111,1770585039759,-25000.0,0.00043765,15]
[404809112,1770585039768,-25000.0,0.00043773,15]
[404809113,1770585039777,-300.0,0.00043781,30]
[404809114,1770585039790,-666.0,0.00043781,30]
[404809115,1770585039799,-25000.0,0.00043782,15]
[404809116,1770585039809,-300.0,0.0004379,30]
[404809117,1770585039819,-25000.0,0.00043791,15]
[404809118,1770585039828,-374.60744617,0.00043792,2]
[404809119,1770585039837,-300.0,0.00043799,30]
[404809120,1770585039847,-25000.0,0.000438,15]
[404809121,1770585039856,-674.0,0.000438,15]
[404809122,1770585039865,-8141.44,0.000438,14]
[404809123,1770585039874,-184.9585572,0.00043808,7]
[404809124,1770585039883,-25000.0,0.00043809,15]
[404809125,1770585039892,-25000.0,0.00043817,15]
[404809126,1770585039901,-25000.0,0.00043826,15]
[404809127,1770585039910,-547.54562284,0.00043834,20]
[404809128,1770585039920,-500.0,0.00043835,120]
[404809129,1770585039930,-539.40911628,0.00043835,120]
[404809130,1770585039939,-25000.0,0.00043835,15]
[404809131,1770585039948,-500.0,0.00043835,120]
[404809132,1770585039959,-519.67,0.00043835,120]
[404809133,1770585039968,-500.0,0.00043835,120]
[404809134,1770585039977,-481.12912873,0.00043835,120]
[404809135,1770585039986,-458.72191811,0.00043835,120]
[404809136,1770585039995,-640.23701102,0.00043835,120]
[404809137,1770585040004,-527.40701074,0.00043835,120]
[404809138,1770585040013,-500.0,0.00043835,120]
[404809139,1770585040023,-500.0,0.00043835,120]
[404809140,1770585040032,-604.28,0.00043835,120]
[404809141,1770585040041,-500.0,0.00043835,120]
[404809142,1770585040051,-558.28225915,0.00043835,120]
[404809143,1770585040063,-508.1886056,0.00043835,120]
[404809144,1770585040073,-500.0,0.00043835,120]
[404809145,1770585040082,-469.15561681,0.00043835,120]
[404809146,1770585040092,-505.91514197,0.00043835,120]
[404809147,1770585040102,-500.0,0.00043835,120]
[404809148,1770585040111,-512.1090984,0.00043835,120]
[404809149,1770585040121,-500.0,0.00043835,120]
[404809150,1770585040130,-500.0,0.00043835,120]
[404809151,1770585040139,-508.00612616,0.00043835,120]
[404809152,1770585040148,-500.0,0.00043835,120]
[404809153,1770585040157,-156.08,0.00043835,120]
[404809154,1770585040166,-516.29400781,0.00043835,120]
[404809155,1770585040175,-511.63126456,0.00043835,120]
[404809156,1770585040184,-512.67709021,0.00043835,120]
[404809157,1770585040193,-500.0,0.00043835,120]
[404809158,1770585040203,-500.0,0.00043835,120]
[404809160,1770585040213,-541.79548207,0.00043835,120]
[404809161,1770585040222,-642.11007679,0.00043835,120]
[404809162,1770585040232,-500.0,0.00043835,60]
[404809163,1770585040241,-500.0,0.00043835,60]
[404809164,1770585040250,-500.0,0.00043835,60]
[404809165,1770585040259,-500.0,0.00043835,60]
[404809166,1770585040268,-500.0,0.00043835,120]
[404809167,1770585040277,-500.0,0.00043835,60]
[404809168,1770585040287,-500.0,0.00043835,60]
[404809169,1770585040297,-500.0,0.00043835,60]
[404809170,1770585040306,-500.0,0.00043835,120]
[404809171,1770585040315,-621.82,0.00043835,120]
[404809172,1770585040324,-507.92970229,0.00043835,120]
[404809173,1770585040333,-510.01353917,0.00043835,120]
[404809175,1770585040343,-512.55454383,0.00043835,120]
[404809176,1770585040352,-527.06115507,0.00043835,120]
[404809177,1770585040361,-527.98031355,0.00043835,120]
[404809178,1770585040371,-309.39236467,0.00043835,120]
[404809179,1770585040380,-572.71662605,0.00043835,120]
[404809180,1770585040392,-500.0,0.00043835,120]
[404809181,1770585040401,-515.50773263,0.00043835,120]
[404809182,1770585040410,-632.27138052,0.00043835,120]
[404809183,1770585040420,-500.0,0.00043835,120]
[404809184,1770585040430,-527.34887562,0.00043835,120]
[404809185,1770585040439,-587.28640187,0.00043835,120]
[404809186,1770585040606,-569.88560542,0.00043835,120]
[404809187,1770585040615,-500.0,0.00043835,120]
[404809188,1770585040624,-506.8158921,0.00043835,120]
[404809189,1770585040634,-9092.66790244,0.00043835,15]
[404809190,1770585040645,-500.0,0.00043835,120]
[404809191,1770585040654,-500.0,0.00043835,120]
[404809192,1770585040663,-500.0,0.00043835,120]
[404809193,1770585040673,-500.0,0.00043835,120]
[404809194,1770585040682,-500.0,0.00043835,120]
[404809195,1770585040692,-500.0,0.00043835,120]
[404809196,1770585040701,-500.0,0.00043835,120]
[404809197,1770585040711,-500.0,0.00043835,120]
[404809198,1770585040720,-500.0,0.00043835,120]
[404809199,1770585040728,-500.0,0.00043835,120]
[404809200,1770585040737,-500.0,0.00043835,120]
[404809201,1770585040747,-500.0,0.00043835,120]
[404809202,1770585040756,-500.0,0.00043835,120]
[404809203,1770585040767,-500.0,0.00043835,120]
[404809204,1770585040777,-522.51334949,0.00043835,120]
[404809205,1770585040790,-500.0,0.00043835,120]
[404809206,1770585040799,-507.86682082,0.00043835,120]
[404809207,1770585040808,-515.57597036,0.00043835,120]
[404809208,1770585040817,-500.0,0.00043835,120]
[404809209,1770585040827,-500.0,0.00043835,120]
[404809210,1770585040837,-506.61615214,0.00043835,120]
[404809211,1770585040846,-426.49097965,0.00043835,120]
[404809212,1770585040855,-500.0,0.00043835,120]
[404809213,1770585040864,-540.32254068,0.00043835,120]
[404809214,1770585040874,-500.0,0.00043835,120]
[404809215,1770585040883,-500.0,0.00043835,120]
[404809216,1770585040893,-372.48653616,0.00043835,120]
[404809217,1770585040903,-500.0,0.00043835,120]
[404809218,1770585040913,-500.0,0.00043835,120]
[404809219,1770585040922,-366.52,0.00043835,120]
[404809220,1770585040931,-500.0,0.00043835,120]
[404809221,1770585040940,-500.0,0.00043835,120]
[404809222,1770585040949,-500.0,0.00043835,120]
[404809223,1770585040959,-500.0,0.00043835,120]
[404809224,1770585040969,-237.88465334,0.00043835,120]
[404809225,1770585040978,-500.0,0.00043835,120]
[404809226,1770585040987,-532.58292275,0.00043835,120]
[404809227,1770585040997,-633.28314932,0.00043835,120]
[404809228,1770585041007,-191.08972978,0.00043835,120]
[404809229,1770585041017,-200.0,0.00043835,120]
[404809230,1770585041028,-500.0,0.00043835,120]
[404809231,1770585041038,-500.0,0.00043835,120]
[404809232,1770585041050,-500.0,0.00043835,120]
[404809233,1770585041059,-500.0,0.00043835,120]
[404809234,1770585041068,-500.0,0.00043835,120]
[404809235,1770585041077,-500.0,0.00043835,120]
[404809236,1770585041087,-500.0,0.00043835,120]
[404809237,1770585041096,-500.0,0.00043835,120]
[404809238,1770585041106,-551.19137094,0.00043835,120]
[404809239,1770585041115,-500.0,0.00043835,120]
[404809240,1770585041124,-197.29607274,0.00043835,120]
[404809241,1770585041133,-500.0,0.00043835,120]
[404809242,1770585041142,-500.0,0.00043835,120]
[404809243,1770585041152,-500.0,0.00043835,120]
[404809244,1770585041161,-500.0,0.00043835,120]
[404809245,1770585041170,-164.0,0.00043853,16]
[404809246,1770585041179,-200.0,0.00043858,2]
[404809247,1770585041188,-150.0,0.00043873,10]
[404809248,1770585041197,-500.0,0.00043883,120]
[404809249,1770585041207,-539.841759,0.000439,18]
[404809250,1770585041216,-2000.0,0.000439,7]
[404809251,1770585041225,-265.06963232,0.00043902,2]
[404809252,1770585041234,-211.0,0.00043911,2]
[404809253,1770585041243,-2699.0,0.00043926,16]
[404809254,1770585041252,-2827.0,0.0004393,16]
[404809255,1770585041262,-212.0,0.00043941,120]
[404809256,1770585041271,-164.0,0.00043942,16]
[404809257,1770585041280,-539.84175899,0.00043976,18]
[404809258,1770585041289,-152.0,0.00044,120]
[404809259,1770585041300,-30000.0,0.00044,80]
[404809260,1770585041309,-77883.69765978,0.00044,120]
[404809261,1770585041318,-500.0,0.00044,120]
[404809262,1770585041327,-547.54562284,0.00044037,20]
[404809263,1770585041338,-211.0,0.00044045,2]
[404809264,1770585041347,-539.84175899,0.00044051,19]
[404809265,1770585041356,-154.0,0.000441,120]
[404809266,1770585041373,-539.84175899,0.00044127,19]
[404809267,1770585041382,-150.0,0.00044137,2]
[404809268,1770585041391,-616.0,0.00044137,2]
[404809269,1770585041401,-3484.0,0.00044137,2]
[404809270,1770585041410,-1335.0,0.00044137,2]
[404809271,1770585041419,-917.0,0.00044137,2]
[404809272,1770585041429,-500.0,0.00044137,120]
[404809273,1770585041438,-500.0,0.00044137,120]
[404809274,1770585041447,-500.0,0.00044137,120]
[404809275,1770585041456,-500.0,0.00044137,120]
[404809276,1770585041465,-500.0,0.00044137,120]
[404809277,1770585041474,-500.0,0.00044137,120]
[404809278,1770585041484,-500.0,0.00044137,120]
[404809279,1770585041494,-500.0,0.00044137,120]
[404809280,1770585041503,-500.0,0.00044137,120]
[404809281,1770585041512,-500.0,0.00044137,120]
[404809282,1770585041522,-500.0,0.00044137,120]
[404809283,1770585041532,-500.0,0.00044137,120]
[404809284,1770585041542,-500.0,0.00044137,120]
[404809285,1770585041554,-500.0,0.00044137,120]
[404809286,1770585041563,-500.0,0.00044137,120]
[404809287,1770585041572,-500.0,0.00044137,120]
[404809288,1770585041582,-500.0,0.00044137,120]
[404809289,1770585041591,-500.0,0.00044137,120]
[404809290,1770585041600,-500.0,0.00044137,120]
[404809291,1770585041609,-500.0,0.00044137,120]
[404809292,1770585041619,-500.0,0.00044137,120]
[404809293,1770585041627,-500.0,0.00044137,120]
[404809294,1770585041637,-500.0,0.00044137,120]
[404809295,1770585041646,-500.0,0.00044137,120]
[404809296,1770585041655,-500.0,0.00044137,120]
[404809297,1770585041664,-500.0,0.00044137,120]
[404809298,1770585041673,-500.0,0.00044137,120]
[404809299,1770585041682,-500.0,0.00044137,120]
[404809300,1770585041691,-500.0,0.00044137,120]
[404809301,1770585041700,-500.0,0.00044137,120]
[404809302,1770585041709,-500.0,0.00044137,120]
[404809303,1770585041718,-500.0,0.00044137,120]
[404809304,1770585041726,-500.0,0.00044137,120]
[404809305,1770585041735,-500.0,0.00044137,120]
[404809306,1770585041744,-500.0,0.00044137,120]
[404809307,1770585041753,-500.0,0.00044137,120]
[404809308,1770585041763,-500.0,0.00044137,120]
[404809309,1770585041772,-500.0,0.00044137,120]
[404809310,1770585041785,-500.0,0.00044137,120]
[404809311,1770585041795,-500.0,0.00044137,120]
[404809312,1770585041803,-500.0,0.00044137,120]
[404809313,1770585041812,-500.0,0.00044137,120]
[404809314,1770585041821,-500.0,0.00044137,120]
[404809315,1770585041831,-500.0,0.00044137,120]
[404809316,1770585041840,-500.0,0.00044137,120]
[404809317,1770585041849,-500.0,0.00044137,120]
[404809318,1770585041858,-500.0,0.00044137,120]
[404809319,1770585041868,-500.0,0.00044137,120]